fUSD/lending_fUSD_20250110
["ID","MTS","AMOUNT","RATE_DAILY","PERIOD"]
[348453160,1736533857412,-1256.8,0.00010797,2]
[348453161,1736533857422,-500.0,0.00010797,2]
[348453162,1736533857432,-208.7187165,0.0001081,2]
[348453163,1736533857442,-260.8179595,0.0001081,2]
[348453164,1736533857452,-6043.10919446,0.0001081,2]
[348453165,1736533857461,-277.19591902,0.0001081,2]
[348453166,1736533857473,-500.0,0.00010821,2]
[348453167,1736533857483,-500.0,0.00010821,2]
[348453168,1736533857495,-500.0,0.00010821,2]
[348453169,1736533857505,-500.0,0.00010821,2]
[348453170,1736533857516,-500.0,0.00010821,2]
[348453171,1736533857527,-500.0,0.00010821,2]
[348453172,1736533857543,-500.0,0.00010821,2]
[348453173,1736533857552,-500.0,0.00010821,2]
[348453174,1736533857562,-500.0,0.00010821,2]
[348453175,1736533857572,-500.0,0.00010821,2]
[348453176,1736533857581,-500.0,0.00010821,2]
[348453177,1736533857591,-500.0,0.00010821,2]
[348453178,1736533857601,-500.0,0.00010821,2]
[348453179,1736533857612,-500.0,0.00010821,2]
[348453180,1736533857622,-504.03,0.00010821,2]
[348453181,1736533857633,-500.0,0.00010821,2]
[348453182,1736533857643,-500.0,0.00010821,2]
[348453183,1736533857654,-500.0,0.00010821,2]
[348453184,1736533857666,-581.02,0.00010821,2]
[348453185,1736533857679,-500.0,0.00010821,2]
[348453186,1736533857691,-500.0,0.00010821,2]
[348453187,1736533857701,-500.0,0.00010821,2]
[348453188,1736533857710,-500.0,0.00010821,2]
[348453189,1736533857722,-500.0,0.00010821,2]
[348453190,1736533857732,-368.75284584,0.00010821,2]
[348453191,1736533857741,-500.0,0.00010821,2]
[348453192,1736533857753,-500.0,0.00010821,2]
[348453193,1736533857763,-500.0,0.00010821,2]
[348453194,1736533857773,-500.0,0.00010821,2]
[348453195,1736533857783,-500.0,0.00010821,2]
[348453196,1736533857795,-500.0,0.00010821,2]
[348453197,1736533857804,-500.0,0.00010821,2]
[348453198,1736533857814,-500.0,0.00010821,2]
[348453199,1736533857824,-241.34,0.00010821,2]
[348453200,1736533857835,-401.36,0.00010821,2]
[348453201,1736533857845,-500.0,0.00010821,2]
[348453202,1736533857854,-500.0,0.00010821,2]
[348453203,1736533857864,-500.0,0.00010821,2]
[348453204,1736533857873,-500.0,0.00010821,2]
[348453205,1736533857884,-500.0,0.00010821,2]
[348453206,1736533857895,-500.0,0.00010821,2]
[348453207,1736533857904,-500.0,0.00010821,2]
[348453208,1736533857915,-500.0,0.00010821,2]
[348453209,1736533857926,-500.0,0.00010821,2]
[348453210,1736533857936,-410.52231902,0.00010821,2]
[348453211,1736533857947,-500.0,0.00010821,2]
[348453212,1736533857957,-500.0,0.00010821,2]
[348453213,1736533857966,-500.0,0.00010821,2]
[348453214,1736533857976,-500.0,0.00010821,2]
[348453215,1736533857985,-500.0,0.00010821,2]
[348453216,1736533857995,-500.0,0.00010821,2]
[348453217,1736533858005,-500.0,0.00010821,2]
[348453218,1736533858014,-541.35,0.00010821,2]
[348453219,1736533858024,-564.88235262,0.00010821,2]
[348453220,1736533858033,-500.0,0.00010821,2]
[348453221,1736533858046,-500.0,0.00010821,2]
[348453222,1736533858055,-499.13309091,0.00010821,2]
[348453223,1736533858064,-500.0,0.00010821,2]
[348453224,1736533858074,-500.0,0.00010821,2]
[348453225,1736533858084,-500.0,0.00010821,2]
[348453226,1736533858095,-500.0,0.00010821,2]
[348453227,1736533858105,-500.0,0.00010821,2]
[348453228,1736533858116,-229.39,0.00010821,2]
[348453229,1736533858126,-500.0,0.00010821,2]
[348453230,1736533858135,-500.0,0.00010821,2]
[348453231,1736533858145,-500.0,0.00010821,2]
[348453232,1736533858155,-500.0,0.00010821,2]
[348453233,1736533858165,-500.0,0.00010821,2]
[348453234,1736533858174,-500.0,0.00010821,2]
[348453235,1736533858184,-500.0,0.00010821,2]
[348453236,1736533858193,-500.0,0.00010821,2]
[348453237,1736533858203,-500.0,0.00010821,2]
[348453238,1736533858213,-500.0,0.00010821,2]
[348453239,1736533858223,-500.0,0.00010821,2]
[348453240,1736533858232,-500.0,0.00010821,2]
[348453241,1736533858242,-500.0,0.00010821,2]
[348453242,1736533858252,-500.0,0.00010821,2]
[348453243,1736533858263,-500.0,0.00010821,2]
[348453244,1736533858273,-500.0,0.00010821,2]
[348453245,1736533858283,-500.0,0.00010821,2]
[348453246,1736533858296,-211.96198568,0.00010821,2]
[348453247,1736533858306,-500.0,0.00010821,2]
[348453248,1736533858315,-543.66565275,0.00010821,2]
[348453249,1736533858325,-1071.0,0.00010821,2]
[348453250,1736533858334,-500.0,0.00010821,2]
[348453251,1736533858344,-500.0,0.00010821,2]
[348453252,1736533858354,-500.0,0.00010821,2]
[348453253,1736533858365,-1778.38,0.00010821,2]
[348453254,1736533858376,-500.0,0.00010821,2]
[348453255,1736533858387,-500.0,0.00010821,2]
[348453256,1736533858397,-416.62598549,0.00010821,2]
[348453257,1736533858407,-500.0,0.00010821,2]
[348453258,1736533858418,-1645.69,0.00010821,2]
[348453259,1736533858428,-400.68078436,0.00010827,2]
[348453260,1736533858439,-500.0,0.0001092,2]
[348453261,1736533858449,-500.0,0.0001092,2]
[348453262,1736533858459,-236.04,0.0001092,2]
[348453263,1736533858469,-588.03,0.0001092,2]
[348453264,1736533858479,-500.0,0.0001092,2]
[348453265,1736533858489,-500.0,0.0001092,2]
[348453266,1736533858500,-500.0,0.0001092,2]
[348453267,1736533858510,-1348.67,0.0001092,2]
[348453268,1736533858519,-500.0,0.0001092,2]
[348453269,1736533858529,-305.03,0.0001092,2]
[348453270,1736533858542,-500.0,0.0001092,2]
[348453271,1736533858552,-500.0,0.0001092,2]
[348453272,1736533858562,-2083.43,0.0001092,2]
[348453273,1736533858573,-500.0,0.0001092,2]
[348453274,1736533858582,-500.0,0.0001092,2]
[348453275,1736533858593,-500.0,0.0001092,2]
[348453276,1736533858602,-500.0,0.0001092,2]
[348453277,1736533858612,-500.0,0.0001092,2]
[348453278,1736533858622,-500.0,0.0001092,2]
[348453279,1736533858632,-551.99,0.0001092,2]
[348453280,1736533858642,-500.0,0.0001092,2]
[348453281,1736533858653,-500.0,0.0001092,2]
[348453282,1736533858666,-500.0,0.0001092,2]
[348453283,1736533858677,-820.31,0.0001092,2]
[348453284,1736533858687,-500.0,0.0001092,2]
[348453285,1736533858698,-500.0,0.0001092,2]
[348453286,1736533858709,-500.0,0.0001092,2]
[348453287,1736533858718,-624.32,0.0001092,2]
[348453288,1736533858729,-612.64,0.0001092,2]
[348453289,1736533858739,-500.0,0.0001092,2]
[348453290,1736533858748,-500.0,0.0001092,2]
[348453291,1736533858758,-500.0,0.0001092,2]
[348453292,1736533858767,-500.0,0.0001092,2]
[348453293,1736533858776,-500.0,0.0001092,2]
[348453294,1736533858788,-612.53,0.00010922,2]
[348453295,1736533858798,-1776.52,0.00010922,2]
[348453296,1736533858808,-1838.22,0.00010922,2]
[348453297,1736533858817,-760.22,0.00010922,2]
[348453298,1736533858827,-1504.35,0.00010922,2]
[348453299,1736533858837,-1213.34,0.00010922,2]
[348453300,1736533858848,-1034.34,0.00010922,2]
[348453301,1736533858858,-686.68,0.00010922,2]
[348453302,1736533858867,-500.0,0.00010922,2]
[348453303,1736533858878,-774.31,0.00010922,2]
[348453304,1736533858887,-500.0,0.00010922,2]
[348453305,1736533858897,-726.66,0.00010922,2]
[348453306,1736533858908,-681.25,0.00010922,2]
[348453307,1736533858917,-500.0,0.00010922,2]
[348453308,1736533858927,-639.87,0.00010922,2]
[348453309,1736533858937,-500.0,0.00010922,2]
[348453310,1736533858946,-987.53,0.00010922,2]
[348453311,1736533858957,-500.0,0.00010922,2]
[348453312,1736533858967,-708.72,0.00010922,2]
[348453313,1736533858977,-500.0,0.00010922,2]
[348453314,1736533858987,-500.0,0.00010922,2]
[348453315,1736533858998,-1898.81,0.00010922,2]
[348453316,1736533859009,-500.0,0.00010922,2]
[348453317,1736533859020,-830.71,0.00010922,2]
[348453318,1736533859030,-598.57,0.00010922,2]
[348453319,1736533859040,-732.15,0.00010923,2]
[348453320,1736533859050,-500.0,0.00010923,2]
[348453321,1736533859061,-654.3,0.00010923,2]
[348453322,1736533859070,-1256.27,0.00010923,2]
[348453323,1736533859079,-500.0,0.00010923,2]
[348453324,1736533859089,-2746.7,0.00010923,2]
[348453325,1736533859099,-752.83,0.00010923,2]
[348453326,1736533859109,-500.0,0.00010923,2]
[348453327,1736533859120,-505.23,0.00010923,2]
[348453328,1736533859131,-1292.91,0.00010923,2]
[348453329,1736533859141,-500.0,0.00010927,2]
[348453330,1736533859150,-500.0,0.00010927,2]
[348453331,1736533859159,-1000.0,0.00010927,2]
[348453332,1736533859168,-572.96,0.00010927,2]
[348453333,1736533859177,-374.31,0.00010927,2]
[348453334,1736533859186,-1400.9,0.00010927,2]
[348453335,1736533859196,-996.96,0.00010927,2]
[348453336,1736533859205,-999.0,0.00010958,2]
[348453337,1736533859214,-150.0,0.00010959,2]
[348453338,1736533859224,-7784.428,0.00010975,2]
[348453339,1736533859234,-375.2,0.00010975,2]
[348453340,1736533859245,-201.17622044,0.00010975,2]
[348453341,1736533859255,-500.0,0.00010986,2]
[348453342,1736533859264,-150.0,0.00010997,2]
[348453343,1736533859274,-4018.0,0.00011,2]
[348453344,1736533859286,-200.0,0.00011,2]
[348453345,1736533859296,-550.0,0.00011,2]
[348453346,1736533859306,-882.0,0.00011048,2]
[348453347,1736533859316,-400.6807843,0.00011056,2]
[348453348,1736533859326,-952.1,0.0001107,2]
[348453349,1736533859336,-1098.85,0.0001107,2]
[348453350,1736533859347,-1497.69,0.0001107,2]
[348453351,1736533859358,-859.29,0.0001107,2]
[348453352,1736533859368,-525.33,0.0001107,2]
[348453353,1736533859378,-1549.39,0.0001107,2]
[348453354,1736533859389,-500.0,0.0001107,2]
[348453355,1736533859399,-500.0,0.0001107,2]
[348453356,1736533859409,-726.64,0.00011071,2]
[348453357,1736533859419,-500.0,0.00011071,2]
[348453358,1736533859428,-573.4,0.00011071,2]
[348453359,1736533859438,-500.0,0.00011071,2]
[348453360,1736533859447,-636.89,0.00011071,2]
[348453361,1736533859458,-782.08,0.00011071,2]
[348453362,1736533859467,-500.0,0.00011071,2]
[348453363,1736533859477,-2162.29,0.00011071,2]
[348453364,1736533859487,-500.0,0.00011071,2]
[348453365,1736533859497,-665.58,0.00011071,2]
[348453366,1736533859507,-1085.29,0.00011071,2]
[348453367,1736533859517,-2973.03,0.00011071,2]
[348453368,1736533859527,-500.0,0.00011071,2]
[348453369,1736533859537,-500.0,0.00011071,2]
[348453370,1736533859548,-867.67,0.00011071,2]
[348453371,1736533859558,-593.95,0.00011071,2]
[348453372,1736533859568,-824.0,0.00011071,2]
[348453373,1736533859578,-936.89,0.00011071,2]
[348453374,1736533859590,-1129.84,0.00011071,2]
[348453375,1736533859600,-1656.28,0.00011071,2]
[348453376,1736533859610,-714.0,0.00011071,2]
[348453377,1736533859620,-509.75,0.00011071,2]
[348453378,1736533859630,-500.0,0.00011071,2]
[348453379,1736533859640,-943.51,0.00011071,2]
[348453380,1736533859719,-467.076034,0.00011071,2]
[348453381,1736533859731,-1256.8,0.00011071,2]
[348453382,1736533859741,-500.0,0.00011071,2]
[348453383,1736533859752,-500.0,0.00011095,2]
[348453384,1736533859762,-500.0,0.00011095,2]
[348453385,1736533859772,-500.0,0.00011095,2]
[348453386,1736533859781,-500.0,0.00011095,2]
[348453387,1736533859793,-500.0,0.00011095,2]
[348453388,1736533859802,-500.0,0.00011095,2]
[348453389,1736533859815,-500.0,0.00011095,2]
[348453390,1736533859824,-500.0,0.00011095,2]
[348453391,1736533859835,-500.0,0.00011095,2]
[348453392,1736533859846,-503.66,0.00011095,2]
[348453393,1736533859856,-534.26,0.00011095,2]
[348453394,1736533859866,-500.0,0.00011095,2]
[348453395,1736533859875,-500.0,0.00011095,2]
[348453396,1736533859885,-504.03,0.00011095,2]
[348453397,1736533859895,-500.0,0.00011095,2]
[348453398,1736533859905,-500.0,0.00011095,2]
[348453399,1736533859914,-500.0,0.00011095,2]
[348453400,1736533859923,-581.02,0.00011095,2]
[348453401,1736533859933,-500.0,0.00011095,2]
[348453402,1736533859942,-500.0,0.00011095,2]
[348453403,1736533859951,-500.0,0.00011095,2]
[348453404,1736533859960,-500.0,0.00011095,2]
[348453405,1736533859968,-500.0,0.00011095,2]
[348453406,1736533859977,-500.0,0.00011095,2]
[348453407,1736533859986,-500.0,0.00011095,2]
[348453408,1736533859995,-187.89,0.00011095,2]
[348453409,1736533860004,-500.0,0.00011095,2]
[348453410,1736533860014,-500.0,0.00011095,2]
[348453411,1736533860023,-500.0,0.00011095,2]
[348453412,1736533860032,-500.0,0.00011095,2]
[348453413,1736533860043,-500.0,0.00011095,2]
[348453414,1736533860052,-500.0,0.00011095,2]
[348453415,1736533860062,-500.0,0.00011095,2]
[348453416,1736533860072,-206.33,0.00011095,2]
[348453417,1736533860082,-500.0,0.00011095,2]
[348453418,1736533860092,-500.0,0.00011095,2]
[348453419,1736533860102,-500.0,0.00011095,2]
[348453420,1736533860111,-500.0,0.00011095,2]
[348453421,1736533860121,-445.42793311,0.00011095,2]
[348453422,1736533860132,-500.0,0.00011095,2]
[348453423,1736533860141,-500.0,0.00011095,2]
[348453424,1736533860150,-500.0,0.00011095,2]
[348453425,1736533860160,-500.0,0.00011095,2]
[348453426,1736533860169,-500.0,0.00011095,2]
[348453427,1736533860178,-500.0,0.00011095,2]
[348453428,1736533860187,-541.35,0.00011095,2]
[348453429,1736533860196,-500.0,0.00011095,2]
[348453430,1736533860206,-500.0,0.00011095,2]
[348453431,1736533860215,-500.0,0.00011095,2]
[348453432,1736533860224,-500.0,0.00011095,2]
[348453433,1736533860234,-500.0,0.00011095,2]
[348453434,1736533860243,-500.0,0.00011095,2]
[348453435,1736533860253,-500.0,0.00011095,2]
[348453436,1736533860262,-500.0,0.00011095,2]
[348453437,1736533860271,-500.0,0.00011095,2]
[348453438,1736533860281,-500.0,0.00011095,2]
[348453439,1736533860292,-500.0,0.00011095,2]
[348453440,1736533860303,-500.0,0.00011095,2]
[348453441,1736533860313,-500.0,0.00011095,2]
[348453442,1736533860323,-500.0,0.00011095,2]
[348453443,1736533860333,-500.0,0.00011095,2]
[348453444,1736533860344,-500.0,0.00011095,2]
[348453445,1736533860353,-500.0,0.00011095,2]
[348453446,1736533860363,-500.0,0.00011095,2]
[348453447,1736533860372,-500.0,0.00011095,2]
[348453448,1736533860382,-317.98615369,0.00011095,2]
[348453449,1736533860392,-500.0,0.00011095,2]
[348453450,1736533860403,-1071.0,0.00011095,2]
[348453451,1736533860413,-500.0,0.00011095,2]
[348453452,1736533860422,-614.2116786,0.00011095,2]
[348453453,1736533860432,-500.0,0.00011095,2]
[348453454,1736533860442,-1778.38,0.00011095,2]
[348453455,1736533860452,-500.0,0.00011095,2]
[348453456,1736533860462,-500.0,0.00011095,2]
[348453457,1736533860471,-361.83169331,0.00011095,2]
[348453458,1736533860481,-1645.69,0.00011095,2]
[348453459,1736533860491,-150.0,0.00011134,2]
[348453460,1736533860500,-564.94,0.00011142,2]
[348453461,1736533860509,-500.0,0.00011194,2]
[348453462,1736533860519,-500.0,0.00011194,2]
[348453463,1736533860530,-500.0,0.00011194,2]
[348453464,1736533860542,-296.62714604,0.00011194,2]
[348453465,1736533860552,-1348.67,0.00011194,2]
[348453466,1736533860562,-500.0,0.00011194,2]
[348453467,1736533860572,-500.0,0.00011194,2]
[348453468,1736533860582,-500.0,0.00011194,2]
[348453469,1736533860592,-2083.43,0.00011194,2]
[348453470,1736533860601,-500.0,0.00011194,2]
[348453471,1736533860611,-500.0,0.00011194,2]
[348453472,1736533860622,-500.0,0.00011194,2]
[348453473,1736533860631,-551.99,0.00011194,2]
[348453474,1736533860641,-500.0,0.00011194,2]
[348453475,1736533860651,-500.0,0.00011194,2]
[348453476,1736533860662,-820.31,0.00011194,2]
[348453477,1736533860672,-544.66993405,0.00011194,2]
[348453478,1736533860687,-624.32,0.00011194,2]
[348453479,1736533860697,-500.0,0.00011194,2]
[348453480,1736533860706,-500.0,0.00011194,2]
[348453481,1736533860716,-500.0,0.00011194,2]
[348453482,1736533860727,-612.53,0.00011196,2]
[348453483,1736533860736,-1776.52,0.00011196,2]
[348453484,1736533860747,-1838.22,0.00011196,2]
[348453485,1736533860758,-760.22,0.00011196,2]
[348453486,1736533860768,-1504.35,0.00011196,2]
[348453487,1736533860778,-1213.34,0.00011196,2]
[348453488,1736533860797,-1034.34,0.00011196,2]
[348453489,1736533860806,-686.68,0.00011196,2]
[348453490,1736533860816,-500.0,0.00011196,2]
[348453491,1736533860826,-774.31,0.00011196,2]
[348453492,1736533860835,-500.0,0.00011196,2]
[348453493,1736533860845,-726.66,0.00011196,2]
[348453494,1736533860855,-681.25,0.00011196,2]
[348453495,1736533860864,-500.0,0.00011196,2]
[348453496,1736533860873,-639.87,0.00011196,2]
[348453497,1736533860883,-500.0,0.00011196,2]
[348453498,1736533860892,-987.53,0.00011196,2]
[348453499,1736533860901,-184.29974426,0.00011196,2]
[348453500,1736533860911,-708.72,0.00011196,2]
[348453501,1736533860920,-500.0,0.00011196,2]
[348453502,1736533860930,-500.0,0.00011196,2]
[348453503,1736533860940,-1898.81,0.00011196,2]
[348453504,1736533860949,-500.0,0.00011196,2]
[348453505,1736533860959,-830.71,0.00011196,2]
[348453506,1736533860969,-598.57,0.00011196,2]
[348453507,1736533860979,-732.15,0.00011197,2]
[348453508,1736533860988,-500.0,0.00011197,2]
[348453509,1736533860999,-654.3,0.00011197,2]
[348453510,1736533861009,-1256.27,0.00011197,2]
[348453511,1736533861018,-500.0,0.00011197,2]
[348453512,1736533861028,-2746.7,0.00011197,2]
[348453513,1736533861039,-752.83,0.00011197,2]
[348453514,1736533861050,-500.0,0.00011197,2]
[348453515,1736533861060,-505.23,0.00011197,2]
[348453516,1736533861070,-1292.91,0.00011197,2]
[348453517,1736533861080,-500.0,0.00011201,2]
[348453518,1736533861091,-500.0,0.00011201,2]
[348453519,1736533861101,-1000.0,0.00011201,2]
[348453520,1736533861111,-572.96,0.00011201,2]
[348453521,1736533861120,-1400.9,0.00011201,2]
[348453522,1736533861130,-175.273,0.0001123,2]
[348453523,1736533861140,-201.17622044,0.0001125,2]
[348453524,1736533861149,-150.0,0.00011271,2]
[348453525,1736533861159,-400.6807843,0.00011285,2]
[348453526,1736533861168,-1000.0,0.00011325,2]
[348453527,1736533861178,-952.1,0.00011344,2]
[348453528,1736533861188,-1098.85,0.00011344,2]
[348453529,1736533861198,-1497.69,0.00011344,2]
[348453530,1736533861207,-859.29,0.00011344,2]
[348453531,1736533861217,-525.33,0.00011344,2]
[348453532,1736533861227,-1549.39,0.00011344,2]
[348453533,1736533861237,-500.0,0.00011344,2]
[348453534,1736533861247,-500.0,0.00011344,2]
[348453535,1736533861257,-726.64,0.00011345,2]
[348453536,1736533861268,-500.0,0.00011345,2]
[348453537,1736533861277,-573.4,0.00011345,2]
[348453538,1736533861287,-500.0,0.00011345,2]
[348453539,1736533861299,-636.89,0.00011345,2]
[348453540,1736533861309,-782.08,0.00011345,2]
[348453541,1736533861319,-500.0,0.00011345,2]
[348453542,1736533861329,-2162.29,0.00011345,2]
[348453543,1736533861340,-500.0,0.00011345,2]
[348453544,1736533861351,-665.58,0.00011345,2]
[348453545,1736533861360,-1085.29,0.00011345,2]
[348453546,1736533861370,-2973.03,0.00011345,2]
[348453547,1736533861379,-500.0,0.00011345,2]
[348453548,1736533861389,-500.0,0.00011345,2]
[348453549,1736533861399,-867.67,0.00011345,2]
[348453550,1736533861408,-593.95,0.00011345,2]
[348453551,1736533861417,-824.0,0.00011345,2]
[348453552,1736533861427,-936.89,0.00011345,2]
[348453553,1736533861437,-1129.84,0.00011345,2]
[348453554,1736533861446,-1656.28,0.00011345,2]
[348453555,1736533861456,-714.0,0.00011345,2]
[348453556,1736533861466,-509.75,0.00011345,2]
[348453557,1736533861476,-500.0,0.00011345,2]
[348453558,1736533861485,-943.51,0.00011345,2]
[348453559,1736533861495,-467.076034,0.00011345,2]
[348453560,1736533861505,-1256.8,0.00011345,2]
[348453561,1736533861515,-500.0,0.00011345,2]
[348453562,1736533861524,-500.0,0.00011369,2]
[348453563,1736533861534,-500.0,0.00011369,2]
[348453564,1736533861547,-271.31034217,0.00011369,2]
[348453565,1736533861557,-500.0,0.00011369,2]
[348453566,1736533861567,-500.0,0.00011369,2]
[348453567,1736533861576,-500.0,0.00011369,2]
[348453568,1736533861585,-500.0,0.00011369,2]
[348453569,1736533861594,-500.0,0.00011369,2]
[348453570,1736533861603,-500.0,0.00011369,2]
[348453571,1736533861615,-209.46555087,0.00011369,2]
[348453572,1736533861625,-500.0,0.00011369,2]
[348453573,1736533861635,-504.03,0.00011369,2]
[348453574,1736533861645,-500.0,0.00011369,2]
[348453575,1736533861655,-500.0,0.00011369,2]
[348453576,1736533861668,-500.0,0.00011369,2]
[348453577,1736533861678,-581.02,0.00011369,2]
[348453578,1736533861687,-500.0,0.00011369,2]
[348453579,1736533861697,-500.0,0.00011369,2]
[348453580,1736533861709,-500.0,0.00011369,2]
[348453581,1736533861719,-430.81,0.00011369,2]
[348453582,1736533861729,-500.0,0.00011369,2]
[348453583,1736533861740,-500.0,0.00011369,2]
[348453584,1736533861750,-500.0,0.00011369,2]
[348453585,1736533861759,-500.0,0.00011369,2]
[348453586,1736533861769,-500.0,0.00011369,2]
[348453587,1736533861779,-500.0,0.00011369,2]
[348453588,1736533861790,-500.0,0.00011369,2]
[348453589,1736533861799,-500.0,0.00011369,2]
[348453590,1736533861809,-500.0,0.00011369,2]
[348453591,1736533861818,-500.0,0.00011369,2]
[348453592,1736533861828,-500.0,0.00011369,2]
[348453593,1736533861837,-500.0,0.00011369,2]
[348453594,1736533861846,-267.43,0.00011369,2]
[348453595,1736533861856,-500.0,0.00011369,2]
[348453596,1736533861865,-500.0,0.00011369,2]
[348453597,1736533861874,-500.0,0.00011369,2]
[348453598,1736533861884,-500.0,0.00011369,2]
[348453599,1736533861893,-500.0,0.00011369,2]
[348453600,1736533861902,-500.0,0.00011369,2]
[348453601,1736533861911,-500.0,0.00011369,2]
[348453602,1736533861921,-541.35,0.00011369,2]
[348453603,1736533861930,-500.0,0.00011369,2]
[348453604,1736533861940,-500.0,0.00011369,2]
[348453605,1736533861950,-500.0,0.00011369,2]
[348453606,1736533861959,-500.0,0.00011369,2]
[348453607,1736533861969,-500.0,0.00011369,2]
[348453608,1736533861979,-500.0,0.00011369,2]
[348453609,1736533861988,-500.0,0.00011369,2]
[348453610,1736533861998,-500.0,0.00011369,2]
[348453611,1736533862007,-593.55422421,0.00011369,2]
[348453612,1736533862017,-500.0,0.00011369,2]
[348453613,1736533862027,-500.0,0.00011369,2]
[348453614,1736533862036,-500.0,0.00011369,2]
[348453615,1736533862048,-500.0,0.00011369,2]
[348453616,1736533862057,-500.0,0.00011369,2]
[348453617,1736533862067,-500.0,0.00011369,2]
[348453618,1736533862076,-500.0,0.00011369,2]
[348453619,1736533862085,-500.0,0.00011369,2]
[348453620,1736533862094,-500.0,0.00011369,2]
[348453621,1736533862105,-500.0,0.00011369,2]
[348453622,1736533862115,-500.0,0.00011369,2]
[348453623,1736533862124,-1071.0,0.00011369,2]
[348453624,1736533862134,-500.0,0.00011369,2]
[348453625,1736533862144,-500.0,0.00011369,2]
[348453626,1736533862154,-1778.38,0.00011369,2]
[348453627,1736533862164,-500.0,0.00011369,2]
[348453628,1736533862175,-500.0,0.00011369,2]
[348453629,1736533862185,-1645.69,0.00011369,2]
[348453630,1736533862194,-365.0,0.000114,2]
[348453631,1736533862204,-1000.0,0.000114,2]
[348453632,1736533862214,-231.0,0.000114,2]
[348453633,1736533862224,-231.71210857,0.00011408,2]
[348453634,1736533862234,-500.0,0.00011468,2]
[348453635,1736533862243,-500.0,0.00011468,2]
[348453636,1736533862254,-500.0,0.00011468,2]
[348453637,1736533862263,-1348.67,0.00011468,2]
[348453638,1736533862273,-500.0,0.00011468,2]
[348453639,1736533862283,-500.0,0.00011468,2]
[348453640,1736533862295,-500.0,0.00011468,2]
[348453641,1736533862305,-2083.43,0.00011468,2]
[348453642,1736533862314,-500.0,0.00011468,2]
[348453643,1736533862323,-500.0,0.00011468,2]
[348453644,1736533862332,-551.99,0.00011468,2]
[348453645,1736533862342,-500.0,0.00011468,2]
[348453646,1736533862352,-820.31,0.00011468,2]
[348453647,1736533862361,-624.32,0.00011468,2]
[348453648,1736533862371,-500.0,0.00011468,2]
[348453649,1736533862381,-500.0,0.00011468,2]
[348453650,1736533862392,-612.53,0.0001147,2]
[348453651,1736533862402,-1776.52,0.0001147,2]
[348453652,1736533862412,-1838.22,0.0001147,2]
[348453653,1736533862421,-760.22,0.0001147,2]
[348453654,1736533862432,-1504.35,0.0001147,2]
[348453655,1736533862442,-1213.34,0.0001147,2]
[348453656,1736533862452,-1034.34,0.0001147,2]
[348453657,1736533862461,-686.68,0.0001147,2]
[348453658,1736533862471,-500.0,0.0001147,2]
[348453659,1736533862480,-774.31,0.0001147,2]